[Event "DMP Ekstraliga 2020"]
[Site "Krakow"]
[Date "2020.08.31"]
[Round "6.10"]
[White "Kosakowski, Jakub"]
[Black "Bartel, Michal"]
[Result "1-0"]
[ECO "C97"]
[WhiteElo "2418"]
[BlackElo "2274"]
[Annotator "ChessBase"]
[PlyCount "79"]
[EventDate "2020.08.26"]
[EventType "team-tourn"]
[EventCountry "POL"]
[SourceTitle "playchess.com"]
[Source "ChessBase"]
[SourceQuality "1"]
[WhiteTeam "UKS 21 Podlesie"]
[BlackTeam "Wrzos Miedzyborow"]
[TimeControl "30/5400+30:1800+30"]

1. e4 {[%emt 0:00:00]} e5 {[%emt 0:00:00]} 2. Nf3 {[%emt 0:00:00]} Nc6 {[%emt 0:00:00]} 3. Bb5 {[%emt 0:00:14]} a6 {[%emt 0:00:41]} 4. Ba4 {[%emt 0:00:17]} Nf6 {[%emt 0:00:38]} 5. O-O {[%emt 0:00:14]} Be7 {[%emt 0:00:05]} 6. Re1 {[%emt 0:00:12]} b5 {[%emt 0:00:05]} 7. Bb3 {[%emt 0:00:08]} d6 {[%emt 0:00:05]} 8. c3 {[%emt 0:00:11]} O-O {[%emt 0:00:09]} 9. h3 {[%emt 0:00:15]} Na5 {[%emt 0:00:53]} 10. Bc2 {[%emt 0:00:11]} c5 {[%emt 0:00:04]} 11. d4 {[%emt 0:00:14]} Qc7 {[%emt 0:00:03]} 12. Nbd2 {[%emt 0:00:12]} Bd7 {[%emt 0:00:09]} 13. d5 {[%emt 0:07:24]} c4 {[%emt 0:00:55]} 14. Nf1 {[%emt 0:05:42]} Nb7 {[%emt 0:00:06]} 15. Ng3 {[%emt 0:00:26]} Nc5 {[%emt 0:00:07]} 16. Nh2 {[%emt 0:05:09]} a5 {[%emt 0:01:06]} 17. Qf3 {[%emt 0:03:32]} b4 {[%emt 0:06:43]} 18. Nf5 {[%emt 0:13:13]} Bxf5 {[%emt 0:05:28]} 19. Qxf5 {[%emt 0:00:49]} Rab8 {[%emt 0:01:05]} 20. Qf3 {[%emt 0:01:22]} Nfd7 {[%emt 0:14:51]} 21. Nf1 {[%emt 0:02:07]} Nb6 {[%emt 0:06:22]} 22. Bd2 {[%emt 0:09:45]} Nba4 {[%emt 0:06:24]} 23. cxb4 {[%emt 0:01:21]} axb4 {[%emt 0:00:59]} 24. b3 {[%emt 0:00:14]} Nb2 {[%emt 0:01:30]} 25. Reb1 {[%emt 0:01:41]} c3 {[%emt 0:09:41]} 26. Bc1 {[%emt 0:05:11]} Ra8 {[%emt 0:02:23]} 27. a3 {[%emt 0:03:02]} Nxb3 {[%emt 0:12:51]} 28. Bxb3 {[%emt 0:02:31]} bxa3 {[%emt 0:00:15]} 29. Ra2 {[%emt 0:03:32]} Qc5 {[%emt 0:06:37]} 30. Bc2 {[%emt 0:01:54]} Ra5 {[%emt 0:03:32]} 31. Ng3 {[%emt 0:31:57]} g6 {[%emt 0:30:15]} 32. Ne2 {[%emt 0:07:29]} Rc8 {[%emt 0:00:22]} 33. Rba1 {[%emt 0:00:41]} Qb4 {[%emt 0:00:39]} 34. h4 {[%emt 0:00:46]} Rc4 {[%emt 0:02:37]} 35. h5 {[%emt 0:01:12]} Rd4 {[%emt 0:02:48]} 36. Qxc3 {[%emt 0:01:40]} Qxc3 {[%emt 0:01:29]} 37. Nxc3 {[%emt 0:00:05]} Rc4 {[%emt 0:00:20]} 38. Rxa3 {[%emt 0:00:16]} Rxc3 {[%emt 0:00:33]} 39. Rxa5 {[%emt 0:00:05]} Rxc2 {[%emt 0:00:13]} 40. R5a2 {[%emt 0:00:00]} 1-0

[Event "DMP Ekstraliga 2020"]
[Site "Krakow"]
[Date "2020.08.31"]
[Round "6.11"]
[White "Sliwerski, Radoslaw"]
[Black "Walter, Szymon"]
[Result "1/2-1/2"]
[ECO "A96"]
[WhiteElo "2042"]
[BlackElo "2288"]
[Annotator "ChessBase"]
[PlyCount "126"]
[EventDate "2020.08.26"]
[EventType "team-tourn"]
[EventCountry "POL"]
[SourceTitle "playchess.com"]
[Source "ChessBase"]
[SourceQuality "1"]
[WhiteTeam "Wrzos Miedzyborow"]
[BlackTeam "UKS 21 Podlesie"]
[TimeControl "30/5400+30:1800+30"]

1. d4 {[%emt 0:02:14]} e6 {[%emt 0:00:08]} 2. c4 {[%emt 0:00:08]} f5 {[%emt 0:00:19]} 3. g3 {[%emt 0:00:12]} Nf6 {[%emt 0:00:12]} 4. Bg2 {[%emt 0:00:02]} Be7 {[%emt 0:00:19]} 5. Nf3 {[%emt 0:00:11]} O-O {[%emt 0:00:20]} 6. O-O {[%emt 0:00:05]} d6 {[%emt 0:00:09]} 7. b3 {[%emt 0:05:24]} a5 {[%emt 0:01:26]} 8. Bb2 {[%emt 0:00:33]} a4 {[%emt 0:02:03]} 9. b4 {[%emt 0:03:00]} Ne4 {[%emt 0:02:41]} 10. a3 {[%emt 0:01:05]} Bf6 {[%emt 0:01:31]} 11. Nc3 {[%emt 0:06:30]} Qe8 {[%emt 0:00:44]} 12. Qc2 {[%emt 0:02:32]} Nxc3 {[%emt 0:13:53]} 13. Bxc3 {[%emt 0:00:06]} e5 {[%emt 0:00:58]} 14. e4 {[%emt 0:11:02]} Nc6 {[%emt 0:12:32]} 15. dxe5 {[%emt 0:07:20]} dxe5 {[%emt 0:00:31]} 16. b5 {[%emt 0:03:57]} Na5 {[%emt 0:02:32]} 17. Nd2 {[%emt 0:06:00]} f4 {[%emt 0:03:00]} 18. gxf4 {[%emt 0:12:51]} exf4 {[%emt 0:02:14]} 19. e5 {[%emt 0:00:56]} Be7 {[%emt 0:00:22]} 20. Be4 {[%emt 0:10:43]} Qh5 {[%emt 0:02:34]} 21. Kh1 {[%emt 0:01:45]} Be6 {[%emt 0:02:39]} 22. Rg1 {[%emt 0:07:14]} c6 {[%emt 0:02:50]} 23. Bxa5 {[%emt 0:06:42]} Rxa5 {[%emt 0:00:08]} 24. Qc3 {[%emt 0:00:07]} Raa8 {[%emt 0:00:30]} 25. bxc6 {[%emt 0:01:51]} bxc6 {[%emt 0:00:18]} 26. Bxc6 {[%emt 0:01:32]} Rac8 {[%emt 0:10:23]} 27. Bb7 {[%emt 0:05:40]} Rc7 {[%emt 0:05:23]} 28. Bf3 {[%emt 0:01:41]} Qh4 {[%emt 0:01:25]} 29. Qa5 {[%emt 0:01:28]} Rc5 {[%emt 0:03:02]} 30. Qb6 {[%emt 0:00:42]} Rxe5 {[%emt 0:03:21]} 31. Rae1 {[%emt 0:30:41]} Rxe1 {[%emt 0:35:44]} 32. Rxe1 {[%emt 0:00:07]} Bf7 {[%emt 0:02:18]} 33. Rg1 {[%emt 0:01:12]} Rd8 {[%emt 0:01:18]} 34. Ne4 {[%emt 0:00:46]} Qh3 {[%emt 0:07:47]} 35. Bg4 {[%emt 0:00:30]} Qxa3 {[%emt 0:02:40]} 36. c5 {[%emt 0:00:21]} h5 {[%emt 0:02:55]} 37. Be2 {[%emt 0:00:25]} Qa2 {[%emt 0:02:47]} 38. Qh6 {[%emt 0:00:47]} Qb2 {[%emt 0:01:16]} 39. Bxh5 {[%emt 0:00:17]} Bxh5 {[%emt 0:03:01]} 40. Qxh5 {[%emt 0:00:00]} a3 {[%emt 0:00:00]} 41. c6 {[%emt 0:00:00]} a2 {[%emt 0:00:00]} 42. c7 {[%emt 0:00:00]} a1=Q {[%emt 0:00:00]} 43. cxd8=Q+ {[%emt 0:00:00]} Bxd8 {[%emt 0:00:00]} 44. Qd5+ {[%emt 0:00:00]} Kh7 {[%emt 0:00:00]} 45. Rxa1 {[%emt 0:00:00]} Qxa1+ {[%emt 0:00:00]} 46. Kg2 {[%emt 0:00:00]} Qa5 {[%emt 0:00:00]} 47. Ng5+ {[%emt 0:00:00]} Kg6 {[%emt 0:00:00]} 48. Qxa5 {[%emt 0:00:00]} Bxa5 {[%emt 0:00:00]} 49. Ne6 {[%emt 0:00:00]} Kf6 {[%emt 0:00:00]} 50. Nxf4 {[%emt 0:00:00]} g5 {[%emt 0:00:00]} 51. Nd5+ {[%emt 0:00:00]} Kg6 {[%emt 0:00:00]} 52. Kf3 {[%emt 0:00:00]} Bd2 {[%emt 0:00:00]} 53. Kg4 {[%emt 0:00:00]} Bc1 {[%emt 0:00:00]} 54. h3 {[%emt 0:00:00]} Bd2 {[%emt 0:00:00]} 55. Ne3 {[%emt 0:00:00]} Bb4 {[%emt 0:00:00]} 56. Nc4 {[%emt 0:00:00]} Bc3 {[%emt 0:00:00]} 57. Nd6 {[%emt 0:00:00]} Bb4 {[%emt 0:00:00]} 58. Ne4 {[%emt 0:00:00]} Be7 {[%emt 0:00:00]} 59. Ng3 {[%emt 0:00:00]} Bc5 {[%emt 0:00:00]} 60. Kf3 {[%emt 0:00:00]} Bb6 {[%emt 0:00:00]} 61. Ke2 {[%emt 0:00:12]} Bd4 {[%emt 0:00:00]} 62. f3 {[%emt 0:00:24]} Be5 {[%emt 0:00:00]} 63. Kf2 {[%emt 0:03:06]} Bd4+ {[%emt 0:00:00]} 1/2-1/2

[Event "DMP Ekstraliga 2020"]
[Site "Krakow"]
[Date "2020.08.31"]
[Round "6.12"]
[White "Sliwicka, Alicja"]
[Black "Kulon, Klaudia"]
[Result "1-0"]
[ECO "C44"]
[WhiteElo "2317"]
[BlackElo "2336"]
[Annotator "ChessBase"]
[PlyCount "107"]
[EventDate "2020.08.26"]
[EventType "team-tourn"]
[EventCountry "POL"]
[SourceTitle "playchess.com"]
[Source "ChessBase"]
[SourceQuality "1"]
[WhiteTeam "UKS 21 Podlesie"]
[BlackTeam "Wrzos Miedzyborow"]
[TimeControl "30/5400+30:1800+30"]

1. e4 {[%emt 0:00:00]} e5 {[%emt 0:00:00]} 2. Nf3 {[%emt 0:00:00]} Nc6 {[%emt 0:00:00]} 3. d4 {[%emt 0:00:00]} exd4 {[%emt 0:00:00]} 4. Nxd4 {[%emt 0:00:00]} Nf6 {[%emt 0:00:00]} 5. Nxc6 {[%emt 0:00:06]} bxc6 {[%emt 0:00:00]} 6. Qe2 {[%emt 0:00:05]} a5 {[%emt 0:01:27]} 7. Nc3 {[%emt 0:15:01]} Bb4 {[%emt 0:03:50]} 8. Bd2 {[%emt 0:12:11]} O-O {[%emt 0:03:12]} 9. O-O-O {[%emt 0:02:09]} Re8 {[%emt 0:01:42]} 10. f3 {[%emt 0:02:34]} d5 {[%emt 0:02:18]} 11. Qf2 {[%emt 0:01:51]} Rb8 {[%emt 0:10:05]} 12. Bd3 {[%emt 0:12:58]} Qd6 {[%emt 0:06:21]} 13. Nb1 {[%emt 0:04:39]} dxe4 {[%emt 0:06:23]} 14. Bxe4 {[%emt 0:10:41]} Nxe4 {[%emt 0:01:37]} 15. fxe4 {[%emt 0:00:17]} Bg4 {[%emt 0:01:59]} 16. Rde1 {[%emt 0:03:15]} Be6 {[%emt 0:06:58]} 17. a3 {[%emt 0:02:56]} Bxd2+ {[%emt 0:10:36]} 18. Qxd2 {[%emt 0:00:36]} Qe5 {[%emt 0:00:27]} 19. Qc3 {[%emt 0:00:51]} Qg5+ {[%emt 0:00:52]} 20. Qd2 {[%emt 0:02:29]} Qb5 {[%emt 0:00:28]} 21. Qc3 {[%emt 0:00:09]} Qg5+ {[%emt 0:01:06]} 22. Qd2 {[%emt 0:00:07]} Qb5 {[%emt 0:03:27]} 23. Qc3 {[%emt 0:00:06]} Red8 {[%emt 0:00:06]} 24. Nd2 {[%emt 0:05:36]} Qg5 {[%emt 0:03:59]} 25. h4 {[%emt 0:00:16]} Qf4 {[%emt 0:00:07]} 26. g3 {[%emt 0:04:33]} Qd6 {[%emt 0:02:03]} 27. Re3 {[%emt 0:00:50]} c5 {[%emt 0:01:09]} 28. Rd3 {[%emt 0:07:43]} Qb6 {[%emt 0:00:14]} 29. Rxd8+ {[%emt 0:03:24]} Rxd8 {[%emt 0:00:33]} 30. Nc4 {[%emt 0:03:18]} Qc6 {[%emt 0:00:06]} 31. Nxa5 {[%emt 0:30:56]} Qxe4 {[%emt 0:30:20]} 32. Re1 {[%emt 0:00:04]} Qd5 {[%emt 0:01:08]} 33. b3 {[%emt 0:00:25]} f6 {[%emt 0:07:06]} 34. Nb7 {[%emt 0:00:46]} Ra8 {[%emt 0:04:23]} 35. Qxc5 {[%emt 0:02:07]} Bf7 {[%emt 0:01:55]} 36. Qxc7 {[%emt 0:00:50]} Qd4 {[%emt 0:02:43]} 37. Kb1 {[%emt 0:01:15]} h5 {[%emt 0:01:59]} 38. Nd6 {[%emt 0:00:50]} Bxb3 {[%emt 0:07:50]} 39. cxb3 {[%emt 0:00:09]} Qd3+ {[%emt 0:00:01]} 40. Kc1 {[%emt 0:00:00]} Qxg3 {[%emt 0:00:00]} 41. Qf7+ {[%emt 0:00:00]} Kh7 {[%emt 0:00:00]} 42. Qxh5+ {[%emt 0:00:00]} Kg8 {[%emt 0:00:00]} 43. Qd5+ {[%emt 0:00:00]} Kh7 {[%emt 0:00:00]} 44. Qe4+ {[%emt 0:00:00]} g6 {[%emt 0:00:00]} 45. Qe7+ {[%emt 0:00:00]} Kh6 {[%emt 0:00:00]} 46. Qe3+ {[%emt 0:00:00]} Qxe3+ {[%emt 0:00:00]} 47. Rxe3 {[%emt 0:00:00]} Rxa3 {[%emt 0:00:00]} 48. Kb2 {[%emt 0:00:00]} Ra6 {[%emt 0:00:00]} 49. Re6 {[%emt 0:00:00]} Kh5 {[%emt 0:00:00]} 50. Rxf6 {[%emt 0:00:00]} Rb6 {[%emt 0:00:00]} 51. Kc3 {[%emt 0:00:00]} Rc6+ {[%emt 0:00:00]} 52. Kd4 {[%emt 0:00:00]} Rc1 {[%emt 0:00:00]} 53. b4 {[%emt 0:00:00]} Rg1 {[%emt 0:00:00]} 54. Rf4 {[%emt 0:00:00]} 1-0

[Event "DMP Ekstraliga 2020"]
[Site "Krakow"]
[Date "2020.08.31"]
[Round "6.15"]
[White "Gumularz, Szymon"]
[Black "Warakomski, Tomasz"]
[Result "1/2-1/2"]
[ECO "D10"]
[WhiteElo "2506"]
[BlackElo "2515"]
[Annotator "ChessBase"]
[PlyCount "74"]
[EventDate "2020.08.26"]
[EventType "team-tourn"]
[EventCountry "POL"]
[SourceTitle "playchess.com"]
[Source "ChessBase"]
[SourceQuality "1"]
[WhiteTeam "Polonia Wroclaw"]
[BlackTeam "Hetman Plock"]
[TimeControl "30/5400+30:1800+30"]

1. d4 {[%emt 0:00:00]} d5 {[%emt 0:00:33]} 2. c4 {[%emt 0:00:00]} c6 {[%emt 0:00:05]} 3. Nc3 {[%emt 0:00:38]} Nf6 {[%emt 0:00:05]} 4. cxd5 {[%emt 0:00:55]} cxd5 {[%emt 0:00:07]} 5. Bf4 {[%emt 0:00:04]} Nc6 {[%emt 0:01:17]} 6. e3 {[%emt 0:00:05]} Bf5 {[%emt 0:05:54]} 7. Qb3 {[%emt 0:00:36]} Na5 {[%emt 0:08:23]} 8. Qa4+ {[%emt 0:01:07]} Bd7 {[%emt 0:00:07]} 9. Qc2 {[%emt 0:00:05]} Rc8 {[%emt 0:02:29]} 10. Bd3 {[%emt 0:00:34]} Nc6 {[%emt 0:04:38]} 11. a3 {[%emt 0:01:53]} Bg4 {[%emt 0:01:56]} 12. Nge2 {[%emt 0:10:23]} e6 {[%emt 0:00:50]} 13. Ng3 {[%emt 0:24:26]} Bh5 {[%emt 0:14:23]} 14. Nxh5 {[%emt 0:10:31]} Nxh5 {[%emt 0:00:11]} 15. Be5 {[%emt 0:00:46]} Nf6 {[%emt 0:04:06]} 16. Qb3 {[%emt 0:06:53]} Nxe5 {[%emt 0:11:37]} 17. dxe5 {[%emt 0:00:35]} Nd7 {[%emt 0:00:04]} 18. Qxb7 {[%emt 0:04:54]} Rc7 {[%emt 0:00:16]} 19. Qa6 {[%emt 0:07:47]} Nxe5 {[%emt 0:03:41]} 20. Qa4+ {[%emt 0:02:36]} Nd7 {[%emt 0:00:17]} 21. e4 {[%emt 0:01:59]} dxe4 {[%emt 0:09:20]} 22. Bb5 {[%emt 0:00:55]} f5 {[%emt 0:10:49]} 23. Rd1 {[%emt 0:06:16]} Bc5 {[%emt 0:02:28]} 24. Rxd7 {[%emt 0:04:07]} Rxd7 {[%emt 0:00:07]} 25. Qc4 {[%emt 0:00:08]} Bxf2+ {[%emt 0:07:13]} 26. Kxf2 {[%emt 0:01:04]} Qb6+ {[%emt 0:00:03]} 27. Kf1 {[%emt 0:04:33]} Ke7 {[%emt 0:00:06]} 28. Bxd7 {[%emt 0:00:05]} Kxd7 {[%emt 0:00:04]} 29. Na4 {[%emt 0:01:31]} Qd6 {[%emt 0:00:40]} 30. Qb5+ {[%emt 0:04:11]} Ke7 {[%emt 0:00:33]} 31. Qc5 {[%emt 0:33:51]} Rc8 {[%emt 0:30:14]} 32. Qxd6+ {[%emt 0:00:58]} Kxd6 {[%emt 0:00:05]} 33. Nc3 {[%emt 0:00:32]} Rb8 {[%emt 0:00:08]} 34. Nd1 {[%emt 0:00:43]} Rc8 {[%emt 0:02:18]} 35. Nc3 {[%emt 0:00:04]} Rb8 {[%emt 0:00:03]} 36. Nd1 {[%emt 0:00:11]} Rc8 {[%emt 0:00:24]} 37. Nc3 {[%emt 0:01:10]} Ke5 1/2-1/2

[Event "DMP Ekstraliga 2020"]
[Site "Krakow"]
[Date "2020.08.31"]
[Round "6.16"]
[White "Grabarczyk, Miroslaw"]
[Black "Tazbir, Marcin"]
[Result "1/2-1/2"]
[ECO "E69"]
[WhiteElo "2368"]
[BlackElo "2510"]
[Annotator "ChessBase"]
[PlyCount "116"]
[EventDate "2020.08.26"]
[EventType "team-tourn"]
[EventCountry "POL"]
[SourceTitle "playchess.com"]
[Source "ChessBase"]
[SourceQuality "1"]
[WhiteTeam "Hetman Plock"]
[BlackTeam "Polonia Wroclaw"]
[TimeControl "30/5400+30:1800+30"]

1. d4 {[%emt 0:00:00]} Nf6 {[%emt 0:00:00]} 2. c4 {[%emt 0:00:00]} g6 {[%emt 0:00:00]} 3. Nf3 {[%emt 0:01:00]} Bg7 {[%emt 0:00:06]} 4. g3 {[%emt 0:00:19]} O-O {[%emt 0:00:05]} 5. Bg2 {[%emt 0:00:07]} d6 {[%emt 0:00:12]} 6. Nc3 {[%emt 0:00:41]} Nbd7 {[%emt 0:00:15]} 7. O-O {[%emt 0:00:44]} e5 {[%emt 0:00:12]} 8. e4 {[%emt 0:02:22]} c6 {[%emt 0:00:08]} 9. h3 {[%emt 0:01:35]} Qa5 {[%emt 0:00:07]} 10. Be3 {[%emt 0:02:32]} b5 {[%emt 0:20:49]} 11. cxb5 {[%emt 0:07:31]} cxb5 {[%emt 0:00:33]} 12. a3 {[%emt 0:00:24]} b4 {[%emt 0:08:31]} 13. axb4 {[%emt 0:01:21]} Qxb4 {[%emt 0:00:56]} 14. Qc2 {[%emt 0:06:32]} a5 {[%emt 0:04:53]} 15. Ra4 {[%emt 0:06:57]} Qb8 {[%emt 0:04:40]} 16. dxe5 {[%emt 0:02:20]} dxe5 {[%emt 0:02:24]} 17. Rfa1 {[%emt 0:03:19]} Qc7 {[%emt 0:02:46]} 18. Nd2 {[%emt 0:04:14]} Nb6 {[%emt 0:04:26]} 19. Rxa5 {[%emt 0:02:00]} Rxa5 {[%emt 0:00:40]} 20. Rxa5 {[%emt 0:00:08]} Be6 {[%emt 0:00:57]} 21. Rc5 {[%emt 0:07:09]} Qd8 {[%emt 0:02:15]} 22. Nb5 {[%emt 0:04:26]} Nfd7 {[%emt 0:05:45]} 23. Rc6 {[%emt 0:03:23]} Na8 {[%emt 0:00:20]} 24. Qa4 {[%emt 0:09:44]} Qb8 {[%emt 0:04:03]} 25. Qa6 {[%emt 0:03:36]} Nf6 {[%emt 0:01:35]} 26. Bc5 {[%emt 0:05:43]} Rc8 {[%emt 0:01:49]} 27. Bd6 {[%emt 0:06:27]} Rxc6 {[%emt 0:01:20]} 28. Qxc6 {[%emt 0:00:05]} Qe8 {[%emt 0:00:30]} 29. Qxe8+ {[%emt 0:01:28]} Nxe8 {[%emt 0:00:02]} 30. Bb8 {[%emt 0:00:57]} Nb6 {[%emt 0:01:55]} 31. Nc7 {[%emt 0:34:24]} Nxc7 {[%emt 0:30:47]} 32. Bxc7 {[%emt 0:00:07]} Na4 {[%emt 0:00:33]} 33. b4 {[%emt 0:01:08]} Bh6 {[%emt 0:01:17]} 34. Nb1 {[%emt 0:02:49]} Ba2 {[%emt 0:02:37]} 35. Na3 {[%emt 0:02:10]} Bf8 {[%emt 0:00:05]} 36. Ba5 {[%emt 0:00:26]} Nc3 {[%emt 0:00:21]} 37. Bf1 {[%emt 0:02:55]} Nxe4 {[%emt 0:03:28]} 38. Bc4 {[%emt 0:00:44]} Nc3 {[%emt 0:01:08]} 39. Ba6 {[%emt 0:03:32]} Nd5 {[%emt 0:01:41]} 40. Bc4 {[%emt 0:00:00]} Nxb4 {[%emt 0:00:00]} 41. Bxb4 {[%emt 0:00:00]} Bxb4 {[%emt 0:00:00]} 42. Bxa2 {[%emt 0:00:00]} Bxa3 {[%emt 0:00:00]} 43. f3 {[%emt 0:00:00]} Kg7 {[%emt 0:00:00]} 44. Kf2 {[%emt 0:00:00]} Bc1 {[%emt 0:00:00]} 45. Bc4 {[%emt 0:00:00]} f5 {[%emt 0:00:00]} 46. Bd5 {[%emt 0:00:00]} Kf6 {[%emt 0:00:00]} 47. Bg8 {[%emt 0:00:00]} Ba3 {[%emt 0:00:00]} 48. f4 {[%emt 0:00:00]} Bc5+ {[%emt 0:00:00]} 49. Ke2 {[%emt 0:00:00]} e4 {[%emt 0:00:00]} 50. h4 {[%emt 0:00:00]} h6 {[%emt 0:00:00]} 51. Bc4 {[%emt 0:00:00]} g5 {[%emt 0:00:00]} 52. hxg5+ {[%emt 0:00:00]} hxg5 {[%emt 0:00:00]} 53. fxg5+ {[%emt 0:00:00]} Kxg5 {[%emt 0:00:00]} 54. Kf1 {[%emt 0:00:00]} Kf6 {[%emt 0:00:00]} 55. Ba6 {[%emt 0:00:00]} Ke5 {[%emt 0:00:00]} 56. Bc8 {[%emt 0:00:00]} Bb6 {[%emt 0:00:00]} 57. Bd7 {[%emt 0:00:00]} Kf6 {[%emt 0:00:00]} 58. Bb5 {[%emt 0:00:00]} f4 {[%emt 0:00:00]} 1/2-1/2

[Event "DMP Ekstraliga 2020"]
[Site "Krakow"]
[Date "2020.08.31"]
[Round "6.17"]
[White "Wieczorek, Oskar"]
[Black "Sabuk, Piotr"]
[Result "1-0"]
[ECO "C18"]
[WhiteElo "2493"]
[BlackElo "2377"]
[Annotator "ChessBase"]
[PlyCount "61"]
[EventDate "2020.08.26"]
[EventType "team-tourn"]
[EventCountry "POL"]
[SourceTitle "playchess.com"]
[Source "ChessBase"]
[SourceQuality "1"]
[WhiteTeam "Polonia Wroclaw"]
[BlackTeam "Hetman Plock"]
[TimeControl "30/5400+30:1800+30"]

1. e4 {[%emt 0:00:00]} e6 {[%emt 0:00:00]} 2. d4 {[%emt 0:00:08]} d5 {[%emt 0:00:00]} 3. Nc3 {[%emt 0:00:21]} Bb4 {[%emt 0:00:00]} 4. e5 {[%emt 0:00:07]} c5 {[%emt 0:00:00]} 5. a3 {[%emt 0:00:03]} Bxc3+ {[%emt 0:00:05]} 6. bxc3 {[%emt 0:00:05]} Ne7 {[%emt 0:00:37]} 7. Qg4 {[%emt 0:00:14]} cxd4 {[%emt 0:00:46]} 8. Qxg7 {[%emt 0:02:29]} Rg8 {[%emt 0:00:19]} 9. Qxh7 {[%emt 0:00:07]} Qc7 {[%emt 0:01:43]} 10. Ne2 {[%emt 0:00:13]} Nbc6 {[%emt 0:00:34]} 11. h4 {[%emt 0:00:34]} Bd7 {[%emt 0:05:33]} 12. f4 {[%emt 0:03:32]} dxc3 {[%emt 0:02:01]} 13. h5 {[%emt 0:00:49]} O-O-O {[%emt 0:02:56]} 14. Qd3 {[%emt 0:00:37]} Nf5 {[%emt 0:05:06]} 15. Rg1 {[%emt 0:13:19]} Rg4 {[%emt 0:19:38]} 16. g3 {[%emt 0:05:50]} a6 {[%emt 0:07:53]} 17. Bh3 {[%emt 0:03:08]} Nxe5 {[%emt 0:00:50]} 18. Qxc3 {[%emt 0:25:40]} Qxc3+ {[%emt 0:06:55]} 19. Nxc3 {[%emt 0:00:06]} Nf3+ {[%emt 0:00:53]} 20. Kf2 {[%emt 0:00:54]} Nxg1 {[%emt 0:00:46]} 21. Bxg4 {[%emt 0:00:07]} Rg8 {[%emt 0:07:35]} 22. Bxf5 {[%emt 0:04:11]} exf5 {[%emt 0:02:11]} 23. Nxd5 {[%emt 0:01:43]} Nh3+ {[%emt 0:01:32]} 24. Kg2 {[%emt 0:00:26]} Bc6 {[%emt 0:00:50]} 25. c4 {[%emt 0:00:10]} Rh8 {[%emt 0:00:50]} 26. Kxh3 {[%emt 0:00:51]} Rxh5+ {[%emt 0:00:09]} 27. Kg2 {[%emt 0:00:03]} b5 {[%emt 0:01:20]} 28. Kg1 {[%emt 0:02:19]} Kd8 {[%emt 0:01:46]} 29. Be3 {[%emt 0:07:03]} bxc4 {[%emt 0:00:49]} 30. Rd1 {[%emt 0:00:42]} Rh3 {[%emt 0:02:14]} 31. Nb4+ {[%emt 0:35:09]} 1-0

[Event "DMP Ekstraliga 2020"]
[Site "Krakow"]
[Date "2020.08.31"]
[Round "6.18"]
[White "Bulmaga, Irina"]
[Black "Zawadzka, Jolanta"]
[Result "1-0"]
[ECO "C43"]
[WhiteElo "2434"]
[BlackElo "2419"]
[Annotator "ChessBase"]
[PlyCount "143"]
[EventDate "2020.08.26"]
[EventType "team-tourn"]
[EventCountry "POL"]
[SourceTitle "playchess.com"]
[Source "ChessBase"]
[SourceQuality "1"]
[WhiteTeam "Hetman Plock"]
[BlackTeam "Polonia Wroclaw"]
[TimeControl "30/5400+30:1800+30"]

1. e4 {[%emt 0:00:00]} e5 {[%emt 0:00:00]} 2. Nf3 {[%emt 0:00:00]} Nf6 {[%emt 0:00:00]} 3. d4 {[%emt 0:00:04]} Nxe4 {[%emt 0:00:00]} 4. Bd3 {[%emt 0:00:08]} Nc6 {[%emt 0:00:08]} 5. O-O {[%emt 0:08:38]} d5 {[%emt 0:03:33]} 6. dxe5 {[%emt 0:01:07]} Bg4 {[%emt 0:07:31]} 7. Nc3 {[%emt 0:25:19]} Nxc3 {[%emt 0:09:30]} 8. bxc3 {[%emt 0:00:05]} Be7 {[%emt 0:03:25]} 9. Re1 {[%emt 0:03:38]} O-O {[%emt 0:06:30]} 10. h3 {[%emt 0:00:10]} Bh5 {[%emt 0:06:16]} 11. Rb1 {[%emt 0:00:10]} Rb8 {[%emt 0:07:07]} 12. Rb5 {[%emt 0:05:42]} Kh8 {[%emt 0:11:35]} 13. Bf5 {[%emt 0:04:28]} d4 {[%emt 0:09:34]} 14. g4 {[%emt 0:01:45]} Bg6 {[%emt 0:01:11]} 15. Nxd4 {[%emt 0:11:15]} Nxd4 {[%emt 0:05:06]} 16. Qxd4 {[%emt 0:01:15]} Bxf5 {[%emt 0:00:34]} 17. gxf5 {[%emt 0:00:55]} Qc8 {[%emt 0:02:19]} 18. Qe4 {[%emt 0:06:12]} c6 {[%emt 0:02:42]} 19. Rb3 {[%emt 0:02:22]} Qc7 {[%emt 0:01:09]} 20. c4 {[%emt 0:00:42]} Qa5 {[%emt 0:03:19]} 21. Rg3 {[%emt 0:04:02]} Rbd8 {[%emt 0:01:52]} 22. Bb2 {[%emt 0:03:09]} Rg8 {[%emt 0:02:52]} 23. Bc3 {[%emt 0:07:51]} Bb4 {[%emt 0:02:36]} 24. Bxb4 {[%emt 0:00:27]} Qxb4 {[%emt 0:00:03]} 25. e6 {[%emt 0:00:36]} Qe7 {[%emt 0:03:14]} 26. Rd3 {[%emt 0:09:44]} g6 {[%emt 0:06:34]} 27. Rxd8 {[%emt 0:00:24]} Rxd8 {[%emt 0:00:16]} 28. fxg6 {[%emt 0:01:36]} fxe6 {[%emt 0:01:23]} 29. gxh7 {[%emt 0:01:34]} Re8 {[%emt 0:01:19]} 30. Re3 {[%emt 0:00:24]} e5 {[%emt 0:01:58]} 31. Kh1 {[%emt 0:30:45]} Qxh7 {[%emt 0:30:35]} 32. f4 {[%emt 0:00:37]} Qh5 {[%emt 0:00:37]} 33. fxe5 {[%emt 0:00:47]} Rd8 {[%emt 0:00:47]} 34. Qg4 {[%emt 0:00:37]} Qh6 {[%emt 0:00:35]} 35. Rg3 {[%emt 0:00:26]} c5 {[%emt 0:00:42]} 36. e6 {[%emt 0:00:19]} Re8 {[%emt 0:00:24]} 37. Qg6 {[%emt 0:00:41]} Qxg6 {[%emt 0:00:21]} 38. Rxg6 {[%emt 0:00:01]} Kh7 {[%emt 0:00:24]} 39. Rf6 {[%emt 0:00:11]} b6 {[%emt 0:00:33]} 40. a4 {[%emt 0:00:00]} Kg7 {[%emt 0:00:00]} 41. Rf7+ {[%emt 0:00:00]} Kg6 {[%emt 0:00:00]} 42. Rxa7 {[%emt 0:00:00]} Rxe6 {[%emt 0:00:00]} 43. a5 {[%emt 0:00:00]} bxa5 {[%emt 0:00:00]} 44. Rxa5 {[%emt 0:00:00]} Re5 {[%emt 0:00:00]} 45. Kg2 {[%emt 0:00:00]} Kf6 {[%emt 0:00:00]} 46. Kf3 {[%emt 0:00:00]} Rf5+ {[%emt 0:00:00]} 47. Ke4 {[%emt 0:00:00]} Re5+ {[%emt 0:00:00]} 48. Kd3 {[%emt 0:00:00]} Rh5 {[%emt 0:00:00]} 49. Kd2 {[%emt 0:00:00]} Rxh3 {[%emt 0:00:00]} 50. Rxc5 {[%emt 0:00:00]} Ke6 {[%emt 0:00:00]} 51. Rd5 {[%emt 0:00:00]} Rg3 {[%emt 0:00:00]} 52. Rd3 {[%emt 0:00:00]} Rg8 {[%emt 0:00:00]} 53. Kc3 {[%emt 0:00:00]} Rc8 {[%emt 0:00:00]} 54. Rd5 {[%emt 0:00:00]} Rb8 {[%emt 0:00:00]} 55. Kd4 {[%emt 0:00:00]} Rh8 {[%emt 0:00:00]} 56. Kc5 {[%emt 0:00:00]} Rc8+ {[%emt 0:00:00]} 57. Kb4 {[%emt 0:00:00]} Rb8+ {[%emt 0:00:00]} 58. Rb5 {[%emt 0:00:00]} Rh8 {[%emt 0:01:12]} 59. Rb7 {[%emt 0:00:57]} Rh2 {[%emt 0:05:27]} 60. Kb5 {[%emt 0:02:01]} Rxc2 {[%emt 0:00:58]} 61. c5 {[%emt 0:00:10]} Rc1 {[%emt 0:01:19]} 62. Kb6 {[%emt 0:01:04]} Rb1+ {[%emt 0:01:16]} 63. Kc7 {[%emt 0:00:08]} Rc1 {[%emt 0:00:44]} 64. c6 {[%emt 0:01:34]} Rh1 {[%emt 0:00:10]} 65. Rb2 {[%emt 0:00:46]} Rc1 {[%emt 0:00:24]} 66. Rd2 {[%emt 0:01:08]} Ke7 {[%emt 0:00:12]} 67. Re2+ {[%emt 0:00:05]} Kf7 {[%emt 0:00:07]} 68. Kd7 {[%emt 0:00:07]} Rd1+ {[%emt 0:00:03]} 69. Kc8 {[%emt 0:00:06]} Rc1 {[%emt 0:00:09]} 70. c7 {[%emt 0:00:06]} Kf6 {[%emt 0:00:16]} 71. Re8 {[%emt 0:00:22]} Kf7 {[%emt 0:00:17]} 72. Rd8 {[%emt 0:00:34]} 1-0